bitfinex/quotes_SOLUSD_20250624
["timestamp","ask_amount","ask_price","bid_price","bid_amount"]
[1750751101877,5.61943189,145.09,145.06,25.54312521]
[1750751102075,5.61943189,145.11,145.08,6.89274882]
[1750751102300,5.61943189,145.13,145.08,31.16182957]
[1750751102477,6.6161,145.16,145.08,31.16182957]
[1750751102478,5.61943189,145.12,145.08,31.16182957]
[1750751102681,5.61943189,145.12,145.08,48.39370164]
[1750751102904,5.61943189,145.13,145.08,48.39370164]
[1750751103392,5.61943189,145.14,145.1,18.64964886]
[1750751103794,5.61943189,145.15,145.12,18.64964886]
[1750751104008,11.75963189,145.2,145.12,24.26908075]
[1750751104194,5.61943189,145.15,145.13,6.89037414]
[1750751104395,11.75963189,145.2,145.13,6.89037414]
[1750751104709,5.61943189,145.15,145.13,6.89037414]
[1750751104911,15.284808,145.2,145.11,6.89132382]
[1750751105082,5.61943189,145.15,145.12,18.64964886]
[1750751105288,5.61943189,145.16,145.12,24.26908075]
[1750751106098,5.61943189,145.15,145.12,18.64964886]
[1750751106408,5.61943189,145.15,145.13,6.89037414]
[1750751107915,5.61943189,145.16,145.13,6.89037414]
[1750751108309,5.61943189,145.16,145.13,24.1163095]
[1750751108900,11.75963189,145.2,145.13,6.89037414]
[1750751109215,5.61943189,145.17,145.13,6.89037414]
[1750751109396,5.61943189,145.17,145.13,24.1163095]
[1750751109809,5.61943189,145.17,145.13,29.73574139]
[1750751110009,5.61943189,145.16,145.13,24.1163095]
[1750751110613,5.61943189,145.16,145.14,18.64964886]
[1750751112098,5.61943189,145.2,145.15,6.88942473]
[1750751112321,5.61943189,145.16,145.13,18.64964886]
[1750751112648,5.61943189,145.14,145.13,18.64964886]
[1750751113207,5.61943189,145.14,145.12,24.11797133]
[1750751113406,5.61943189,145.13,145.12,42.76762019]
[1750751113918,5.61943189,145.13,145.12,6.89084895]
[1750751114818,5.61943189,145.15,145.13,18.64964886]
[1750751115017,5.61943189,145.14,145.13,18.64964886]
[1750751115543,1.6458,145.21,145.13,18.64964886]
[1750751115720,5.61943189,145.17,145.13,18.64964886]
[1750751116233,5.61943189,145.17,145.15,18.64964886]
[1750751116415,5.61943189,145.18,145.15,20.21894886]
[1750751117034,5.61943189,145.16,145.15,1.5693]
[1750751117215,5.61943189,145.16,145.11,25.54097268]
[1750751117534,1.5461,145.19,145.12,18.64964886]
[1750751117907,11.63633189,145.2,145.12,18.64964886]
[1750751118116,11.63633189,145.2,145.13,6.89037414]
[1750751118838,5.61943189,145.14,145.13,6.89037414]
[1750751119132,5.61943189,145.15,145.13,132.16595836]
[1750751121333,5.61943189,145.16,145.14,18.64964886]
[1750751121723,5.61943189,145.17,145.14,108.04964886]
[1750751121931,5.61943189,145.18,145.14,108.04964886]
[1750751122331,5.61943189,145.18,145.14,113.66908075]
[1750751122544,5.61943189,145.18,145.16,18.64964886]
[1750751122936,5.61943189,145.17,145.16,18.64964886]
[1750751123440,5.61943189,145.17,145.16,25.53859898]
[1750751123642,1.512,145.26,145.16,42.76097429]
[1750751123826,5.61943189,145.17,145.16,42.76097429]
[1750751124145,5.61943189,145.17,145.16,25.53859898]
[1750751125535,5.61943189,145.17,145.15,18.64964886]
[1750751125738,5.61943189,145.16,145.15,18.64964886]
[1750751125925,5.61943189,145.16,145.09,7.14]
[1750751126129,5.61943189,145.1,145.09,31.26179527]
[1750751126325,5.61943189,145.1,145.09,32.68192262]
[1750751127654,7.23683189,145.2,145.09,32.68192262]
[1750751127836,5.61943189,145.1,145.09,32.68192262]
[1750751128233,9.33516189,145.1,145.09,32.68192262]
[1750751128758,9.33516189,145.11,145.09,49.91260702]
[1750751129650,9.33516189,145.1,145.04,17.23662437]
[1750751129832,9.33516189,145.06,145.04,17.23662437]
[1750751130165,9.33516189,145.05,145.04,35.88627323]
[1750751130532,9.33516189,145.05,145.04,18.64964886]
[1750751131930,9.33516189,145.05,145.04,25.54429861]
[1750751134034,9.33516189,145.06,145.04,25.54429861]
[1750751134559,9.33516189,145.05,145.04,25.54429861]
[1750751136560,9.33516189,145.1,145.04,6.89464975]
[1750751136762,9.33516189,145.05,145.04,96.29464975]
[1750751137269,9.33516189,145.05,145.04,108.04964886]
[1750751137755,9.33516189,145.05,145.04,114.94429861]
[1750751138159,9.33516189,145.05,145.04,25.54429861]
[1750751138367,9.33516189,145.1,145.04,25.54429861]
[1750751138672,9.33516189,145.05,145.04,25.54429861]
[1750751138835,9.33516189,145.05,145.04,114.94429861]
[1750751140965,9.33516189,145.1,145.05,18.64964886]
[1750751141273,9.33516189,145.06,145.05,18.64964886]
[1750751142555,9.33516189,145.06,145.05,25.54382328]
[1750751144857,9.33516189,145.06,145.05,114.94382328]
[1750751145273,9.33516189,145.06,145.05,108.04964886]
[1750751145463,9.33516189,145.06,145.05,89.4]
[1750751145892,9.33516189,145.06,145.03,108.04964886]
[1750751146064,9.33516189,145.04,145.03,108.04964886]
[1750751146269,9.33516189,145.04,145.03,114.94447128]
[1750751147561,9.33516189,145.04,145.02,96.48]
[1750751147884,9.33516189,145.03,145.02,25.72964886]
[1750751148175,9.33516189,145.03,145.02,7.08]
[1750751148483,9.33516189,145.03,145.0,89.4]
[1750751148693,9.33516189,145.01,145.0,114.9461877]
[1750751149071,9.33516189,145.01,145.0,108.04964886]
[1750751149398,9.33516189,145.01,144.97,25.54762775]
[1750751149553,9.33516189,144.98,144.97,132.19257498]
[1750751149755,9.33516189,144.99,144.97,132.19257498]
[1750751150081,9.33516189,145.02,144.97,171.30773687]
[1750751150376,7.7452,145.08,144.99,18.64964886]
[1750751150377,5.60720932,145.03,144.99,18.64964886]
[1750751150560,5.60720932,145.03,145.01,18.64964886]
[1750751150762,5.60720932,145.03,145.01,108.04964886]
[1750751151171,5.60720932,145.03,145.02,6.8956006]
[1750751153381,5.60720932,145.04,145.02,42.78425097]
[1750751153584,5.60720932,145.05,145.03,18.64964886]
[1750751154061,5.60720932,145.06,145.03,18.64964886]
[1750751154260,5.60720932,145.06,145.03,108.04964886]
[1750751155680,5.60720932,145.06,145.04,6.89464975]
[1750751156379,5.60720932,145.05,145.04,25.54429861]
[1750751159893,5.60720932,145.05,145.04,114.94429861]
[1750751160514,5.60720932,145.05,144.99,89.4]
[1750751160515,11.21441864,145.05,144.99,89.4]
[1750751160798,5.60720932,145.0,144.97,24.14188442]
[1750751160974,5.60720932,144.99,144.97,24.14188442]
[1750751161178,5.60720932,144.98,144.96,13.91832621]
[1750751161384,5.60720932,144.97,144.91,13.920835]
[1750751161574,5.60720932,144.92,144.91,60.9129225]
[1750751161889,5.60720932,144.92,144.91,13.920835]
[1750751162681,5.60720932,144.92,144.91,32.57048386]
[1750751163471,6.4571,144.98,144.92,18.64964886]
[1750751163678,5.60720932,144.93,144.92,18.64964886]
[1750751163883,6.4571,144.98,144.92,18.64964886]
[1750751164078,5.60720932,144.96,144.92,53.99685818]
[1750751164397,9.35329724,144.96,144.92,48.38964886]
[1750751164696,9.35329724,144.95,144.92,48.38964886]
[1750751165198,9.35329724,144.95,144.94,18.64964886]
[1750751165383,9.35329724,145.0,144.94,18.64964886]
[1750751165586,9.35329724,144.96,144.94,18.64964886]
[1750751166193,9.35329724,144.95,144.94,18.64964886]
[1750751167002,9.35329724,144.96,144.95,6.89893066]
[1750751167200,9.35329724,144.99,144.96,18.64964886]
[1750751167395,9.35329724,144.99,144.96,108.04964886]
[1750751167590,9.35329724,145.01,144.98,18.64964886]
[1750751167790,9.35329724,145.02,144.98,18.64964886]
[1750751167993,9.35329724,145.01,144.98,108.04964886]
[1750751168378,9.35329724,145.03,145.0,18.64964886]
[1750751168582,10.46464831,145.12,145.0,18.64964886]
[1750751168583,9.35329724,145.04,145.0,18.64964886]
[1750751168782,9.35329724,145.03,145.0,18.64964886]
[1750751169089,6.1518,145.1,145.02,18.64964886]
[1750751169294,9.35329724,145.03,145.02,18.64964886]
[1750751170404,9.35329724,145.04,145.02,18.64964886]
[1750751171102,9.35329724,145.05,145.04,18.64964886]
[1750751171506,9.35329724,145.05,145.03,6.89512514]
[1750751171678,9.35329724,145.04,145.03,25.544774]
[1750751172404,9.35329724,145.04,145.01,18.64964886]
[1750751172583,9.35329724,145.03,145.01,18.64964886]
[1750751172981,9.35329724,145.04,145.01,18.64964886]
[1750751173193,9.35329724,145.04,145.02,6.8956006]
[1750751173390,9.35329724,145.05,145.02,6.8956006]
[1750751173584,9.35329724,145.04,145.02,6.8956006]
[1750751173792,15.50509724,145.1,145.01,48.36964886]
[1750751173793,9.35329724,145.03,145.01,55.26554751]
[1750751173989,9.35329724,145.02,145.01,114.94554751]
[1750751174189,9.35329724,145.02,145.01,144.66554751]
[1750751174410,9.35329724,145.02,145.01,48.36964886]
[1750751174602,9.35329724,145.02,145.01,55.26572499]
[1750751174805,9.35329724,145.03,145.01,55.26572499]
[1750751176287,9.35329724,145.03,145.02,18.64964886]
[1750751176490,9.35329724,145.05,145.02,18.64964886]
[1750751176904,15.50509724,145.1,145.02,18.64964886]
[1750751177120,9.35329724,145.04,145.03,48.34964886]
[1750751177526,15.50509724,145.1,145.03,55.244774]
[1750751177527,9.35329724,145.05,145.03,55.244774]
[1750751177819,9.35329724,145.07,145.03,55.244774]
[1750751178033,9.35329724,145.09,145.06,18.64964886]
[1750751178222,6.5839,145.14,145.08,18.64964886]
[1750751178519,9.35329724,145.09,145.08,18.64964886]
[1750751178702,9.35329724,145.09,145.06,18.64964886]
[1750751178894,9.35329724,145.07,145.06,18.64964886]
[1750751179686,9.35329724,145.08,145.06,42.7775959]
[1750751179910,9.35329724,145.08,145.06,132.1775959]
[1750751181013,9.35329724,145.08,145.07,29.68]
[1750751181314,6.5839,145.14,145.07,137.72964886]
[1750751181315,9.35329724,145.09,145.07,137.72964886]
[1750751181716,9.35329724,145.1,145.08,42.77426975]
[1750751182387,9.35329724,145.09,145.08,42.77426975]
[1750751183421,9.35329724,145.09,145.08,25.54239768]
[1750751185421,9.35329724,145.09,145.08,18.64964886]
[1750751185624,9.35329724,145.09,145.07,96.29317985]
[1750751185795,6.5839,145.14,145.07,114.94282871]
[1750751185796,9.35329724,145.08,145.07,114.94282871]
[1750751186628,6.5839,145.14,145.08,18.64964886]
[1750751186917,9.35329724,145.09,145.08,108.04964886]
[1750751187120,9.35329724,145.09,145.05,119.08]
[1750751187328,9.35329724,145.06,145.04,96.29457614]
[1750751187497,9.35329724,145.05,145.04,25.544225]
[1750751187696,9.35329724,145.05,145.03,6.89491298]
[1750751187896,9.35329724,145.05,145.01,136.29915803]
[1750751187897,9.35329724,145.04,145.01,6.89607613]
[1750751188097,9.35329724,145.02,145.01,6.89607613]
[1750751188324,9.35329724,145.02,145.01,25.54572499]
[1750751192516,1.5223,145.09,145.02,18.64964886]
[1750751192706,9.35329724,145.06,145.02,57.6629461]
[1750751193322,9.35329724,145.08,145.04,18.64964886]
[1750751193515,9.35329724,145.08,145.04,48.30964886]
[1750751193896,9.35329724,145.07,145.04,48.30964886]
[1750751194101,9.35329724,145.09,145.06,18.64964886]
[1750751194298,1.6128,145.13,145.07,24.12628386]
[1750751194299,9.35329724,145.1,145.07,24.12628386]
[1750751195124,9.35329724,145.1,145.07,113.52628386]
[1750751195504,9.35329724,145.1,145.07,120.48628386]
[1750751196435,9.35329724,145.11,145.1,18.64964886]
[1750751196616,9.35329724,145.11,145.1,108.04964886]
[1750751198330,9.35329724,145.11,145.1,114.94144761]
[1750751200325,9.35329724,145.11,145.09,6.89210873]
[1750751200524,9.35329724,145.1,145.07,13.85301753]
[1750751200734,9.35329724,145.08,145.07,32.50266639]
[1750751204449,5.60269053,145.08,145.07,32.50266639]
[1750751207920,5.60269053,145.12,145.08,25.54194249]
[1750751208120,5.60269053,145.09,145.08,25.54194249]
[1750751210025,5.60269053,145.09,145.08,114.94194249]
[1750751212029,5.60269053,145.09,145.07,6.96]
[1750751212237,12.10629053,145.08,145.03,25.544774]
[1750751212533,5.60269053,145.04,145.03,25.544774]
[1750751213641,5.60269053,145.04,145.02,13.7954693]
[1750751213829,6.5036,145.08,145.02,32.44511816]
[1750751213830,5.60269053,145.03,145.02,32.44511816]
[1750751215230,5.60269053,145.03,145.02,13.7954693]
[1750751217647,6.5036,145.08,145.02,13.7954693]
[1750751217848,5.60269053,145.05,145.03,18.64964886]
[1750751218155,5.60269053,145.04,145.03,108.04964886]
[1750751219224,6.5036,145.08,145.03,114.944774]
[1750751219432,5.60269053,145.04,145.03,114.944774]
[1750751221240,5.60269053,145.04,145.02,13.79537793]
[1750751221440,5.60269053,145.03,145.02,6.9]
[1750751222343,5.60269053,145.03,144.98,18.82863476]
[1750751222344,7.21719053,145.03,144.96,89.4]
[1750751222634,5.60269053,144.97,144.95,13.79893066]
[1750751222829,5.60269053,144.96,144.95,121.84857952]
[1750751223258,5.60269053,144.98,144.96,18.64964886]
[1750751223450,5.60269053,145.0,144.96,48.20964886]
[1750751223650,5.60269053,145.0,144.96,137.60964886]
[1750751223852,5.60269053,144.97,144.96,137.60964886]
[1750751224049,5.60269053,144.97,144.96,108.04964886]
[1750751224741,5.60269053,144.98,144.96,137.60964886]
[1750751224946,5.60269053,144.99,144.96,137.60964886]
[1750751225326,5.60269053,144.99,144.97,6.89797889]
[1750751225552,1.6145,145.03,144.98,18.64964886]
[1750751225731,5.60269053,145.05,145.0,24.25233939]
[1750751225935,6.4662,145.09,144.98,121.7433]
[1750751225936,5.60269053,145.03,145.02,18.64964886]
[1750751226356,5.60269053,145.03,144.99,29.56]
[1750751226562,5.60269053,145.04,145.0,18.64964886]
[1750751226754,5.60269053,145.01,145.0,18.64964886]
[1750751227344,5.60269053,145.01,145.0,25.54620058]
[1750751228243,6.4662,145.09,145.0,25.54620058]
[1750751228562,5.60269053,145.01,145.0,25.54620058]
[1750751228778,6.4662,145.09,145.0,25.54620058]
[1750751228779,5.60269053,145.04,145.0,25.54620058]
[1750751228940,5.60269053,145.01,145.0,25.54620058]
[1750751229562,5.60269053,145.01,144.99,18.64964886]
[1750751229746,5.60269053,145.0,144.97,6.89779337]
[1750751229951,5.60269053,144.98,144.97,25.54744223]
[1750751231440,5.60269053,144.98,144.95,13.79871418]
[1750751231641,5.60269053,144.96,144.95,32.44836304]
[1750751232039,5.60269053,144.96,144.95,31.94836304]
[1750751232646,5.60269053,144.96,144.95,25.04964886]
[1750751232846,5.60269053,144.96,144.95,31.94857952]
[1750751233260,5.60269053,144.96,144.95,13.29893066]
[1750751233462,5.60269053,144.96,144.95,6.4]
[1750751233765,11.20538106,144.96,144.92,6.900144]
[1750751233956,5.60269053,144.93,144.92,25.54979286]
[1750751234157,5.60269053,144.93,144.9,6.9]
[1750751234470,5.60269053,144.96,144.91,18.64964886]
[1750751235541,5.60269053,144.96,144.91,25.550264]
[1750751235760,5.60269053,144.92,144.91,25.550264]
[1750751236165,5.60269053,144.92,144.91,18.64964886]
[1750751236679,5.60269053,144.92,144.9,6.9]
[1750751236842,5.60269053,144.91,144.9,25.54964886]
[1750751237162,5.60269053,144.91,144.9,32.45082426]
[1750751238653,5.60269053,144.91,144.9,6.9]
[1750751238860,5.60269053,144.91,144.88,25.55177285]
[1750751239049,5.60269053,144.89,144.88,25.55177285]
[1750751239769,5.60269053,144.9,144.88,25.55177285]
[1750751240452,5.60269053,144.96,144.88,42.8074327]
[1750751240648,5.60269053,144.9,144.88,42.8074327]
[1750751240841,5.60269053,144.96,144.88,42.8074327]
[1750751240842,5.60269053,144.91,144.88,42.8074327]
[1750751241045,5.60269053,144.93,144.88,137.81012323]
[1750751241643,5.60269053,144.93,144.9,6.90131124]
[1750751241849,5.60269053,144.92,144.9,6.90131124]
[1750751242556,6.1067,144.97,144.9,6.90131124]
[1750751242752,5.60269053,144.92,144.9,6.90131124]
[1750751243165,5.60269053,144.91,144.9,6.90131124]
[1750751243373,5.60269053,144.92,144.9,6.90131124]
[1750751244068,5.60269053,144.94,144.9,18.64964886]
[1750751244270,1.5377,144.99,144.9,24.25233939]
[1750751244452,5.60269053,144.94,144.9,113.65233939]
[1750751244768,5.60269053,144.94,144.9,108.04964886]
[1750751246259,5.60269053,144.94,144.92,18.64964886]
[1750751246661,5.60269053,144.93,144.92,18.64964886]
[1750751247477,5.60269053,144.93,144.91,6.900835]
[1750751247661,5.60269053,144.92,144.91,25.55048386]
[1750751248063,5.60269053,144.92,144.91,6.900835]
[1750751248277,5.60269053,144.92,144.85,89.4]
[1750751248482,1.6625,144.93,144.87,18.64964886]
[1750751248660,1.6625,144.93,144.86,6.90321689]
[1750751249357,1.6625,144.93,144.87,18.64964886]
[1750751249762,5.60269053,144.88,144.87,18.64964886]
[1750751249959,1.6625,144.93,144.87,108.04964886]
[1750751250159,5.60269053,144.89,144.88,6.90226394]
[1750751250377,5.60269053,144.89,144.88,114.9519128]
[1750751253058,5.60269053,144.89,144.88,96.30226394]
[1750751253260,5.60269053,144.89,144.88,6.90226394]
[1750751253962,5.60269053,144.89,144.87,6.90274038]
[1750751254165,5.60269053,144.88,144.87,6.90274038]
[1750751254367,11.20538106,144.88,144.84,6.90417011]
[1750751254560,5.60269053,144.85,144.82,6.9051236]
[1750751254874,5.60269053,144.83,144.82,24.1679326]
[1750751255079,5.60269053,144.83,144.82,42.81758146]
[1750751256185,1.6004,144.87,144.83,18.64964886]
[1750751256378,5.60269053,144.84,144.83,18.64964886]
[1750751257690,5.60269053,144.84,144.82,24.1679326]
[1750751257891,1.6004,144.87,144.82,6.9051236]
[1750751257892,5.60269053,144.83,144.82,6.9051236]
[1750751258088,5.60269053,144.83,144.81,18.64964886]
[1750751258494,5.60269053,144.82,144.81,18.64964886]
[1750751259999,5.60269053,144.82,144.8,24.17125254]
[1750751260186,1.6004,144.87,144.8,24.17125254]
[1750751260187,5.60269053,144.81,144.8,24.17125254]
[1750751262399,5.60269053,144.81,144.8,6.90607734]
[1750751263678,5.60269053,144.81,144.8,25.5557262]
[1750751264408,5.60269053,144.89,144.87,18.64964886]
[1750751264589,6.067,144.93,144.87,18.64964886]
[1750751264590,5.60269053,144.88,144.87,18.64964886]
[1750751264907,5.60269053,144.88,144.86,24.16125913]
[1750751265197,5.60269053,144.87,144.86,42.81090799]
[1750751266788,5.60269053,144.87,144.86,24.16125913]
[1750751267001,5.60269053,144.87,144.86,6.90321689]
[1750751268681,5.60269053,144.87,144.85,6.90369347]
[1750751268897,5.60269053,144.86,144.85,24.16292716]
[1750751269182,5.60269053,144.87,144.86,18.64964886]
[1750751270302,5.60269053,144.88,144.86,18.64964886]
[1750751270502,6.067,144.93,144.86,18.64964886]
[1750751270705,5.60269053,144.89,144.88,18.64964886]
[1750751271293,5.60269053,144.9,144.88,18.64964886]
[1750751271895,5.60269053,144.91,144.88,18.64964886]
[1750751272818,5.60269053,144.91,144.89,6.90178756]
[1750751272996,5.60269053,144.91,144.9,18.64964886]
[1750751273993,5.60269053,144.91,144.9,25.5509601]
[1750751274307,5.60269053,144.93,144.9,77.31079446]
[1750751274512,5.60269053,144.92,144.9,42.80423822]
[1750751274691,5.60269053,144.91,144.9,42.80423822]
[1750751276795,12.17239053,144.96,144.9,42.80423822]
[1750751277011,5.60269053,144.91,144.9,132.20423822]
[1750751278497,5.60269053,144.91,144.9,113.55458936]
[1750751281000,5.60269053,144.91,144.9,24.15458936]
[1750751282501,6.5697,144.96,144.9,17.25327812]
[1750751282706,5.60269053,144.91,144.9,125.30292698]
[1750751284698,5.60269053,144.91,144.9,132.20423822]
[1750751286313,5.60269053,144.91,144.9,96.30131124]
[1750751286817,5.60269053,144.91,144.9,132.20423822]
[1750751287407,12.17239053,144.96,144.91,18.64964886]
[1750751287615,5.60269053,144.93,144.91,108.04964886]
[1750751287812,6.5697,144.96,144.91,108.04964886]
[1750751287813,5.60269053,144.92,144.91,108.04964886]
[1750751288930,5.60269053,144.92,144.91,114.95048386]
[1750751290140,5.60269053,144.92,144.91,96.300835]
[1750751291339,5.60269053,144.92,144.91,89.4]
[1750751292425,5.60269053,144.92,144.86,25.55286575]
[1750751292725,5.60269053,144.87,144.85,6.90348594]
[1750751293029,5.60269053,144.86,144.85,6.90348594]
[1750751293930,6.5909,144.9,144.85,6.90348594]
[1750751294152,5.60269053,144.86,144.85,25.5531348]
[1750751294859,5.60269053,144.86,144.85,6.90348594]
[1750751295826,5.60269053,144.86,144.84,25.55381897]
[1750751296020,5.60269053,144.85,144.84,25.55381897]
[1750751298458,5.60269053,144.85,144.82,6.9051236]
[1750751298618,5.60269053,144.88,144.82,6.9051236]
[1750751298619,5.60269053,144.83,144.82,25.55477246]
[1750751299345,6.5909,144.9,144.83,18.64964886]
[1750751299517,5.60269053,144.86,144.83,18.64964886]
[1750751299722,5.60269053,144.87,144.84,6.90417011]
[1750751300146,5.60269053,144.86,144.84,24.1645954]
[1750751302053,5.60269053,144.87,144.84,25.6922954]
[1750751303058,5.60269053,144.87,144.85,18.64964886]
[1750751303349,5.60269053,144.89,144.85,18.64964886]
[1750751303524,5.60269053,144.89,144.85,108.04964886]
[1750751303945,5.60269053,144.89,144.86,24.16125913]
[1750751304150,5.60269053,144.89,144.86,113.56125913]
[1750751305324,6.1644,144.94,144.86,113.56125913]
[1750751305524,5.60269053,144.89,144.86,113.56125913]
[1750751306457,6.1644,144.94,144.86,113.56125913]
[1750751306626,5.60269053,144.9,144.87,18.64964886]
[1750751306826,5.60269053,144.9,144.87,108.04964886]
[1750751307261,5.60269053,144.91,144.87,108.04964886]
[1750751307637,5.60269053,144.92,144.87,113.65233939]
[1750751308035,5.60269053,144.91,144.87,113.65233939]
[1750751308738,5.60269053,144.91,144.89,18.64964886]
[1750751310954,5.60269053,144.91,144.9,6.90131124]
[1750751311526,5.60269053,144.91,144.89,89.4]
[1750751311731,5.60269053,144.9,144.89,96.30159678]
[1750751311929,5.60269053,144.9,144.88,6.90204351]
[1750751312171,5.60269053,144.89,144.88,6.90204351]
[1750751312460,5.60269053,144.89,144.86,13.68275359]
[1750751312760,5.60269053,144.96,144.82,6.9051236]
[1750751312761,5.60269053,144.87,144.82,6.9051236]
[1750751312939,5.60269053,144.84,144.82,113.5679326]
[1750751313256,5.60269053,144.84,144.83,18.64964886]
[1750751314841,5.60269053,144.84,144.83,25.55429568]
[1750751315862,6.1637,144.9,144.83,25.55429568]
[1750751316064,5.60269053,144.84,144.83,25.55429568]
[1750751320938,5.60269053,144.87,144.83,48.41860327]
[1750751321158,5.60269053,144.87,144.83,167.19860327]
[1750751321457,5.60269053,144.85,144.83,161.59591274]
[1750751321758,5.60269053,144.84,144.83,42.81591274]
[1750751322153,5.60269053,144.84,144.83,25.55429568]
[1750751325065,5.60269053,144.85,144.83,42.81591274]
[1750751325237,5.60269053,144.85,144.83,132.21591274]
[1750751328065,5.60269053,144.86,144.83,132.21591274]
[1750751328752,5.60269053,144.88,144.83,137.81860327]
[1750751328956,5.60269053,144.88,144.85,18.64964886]
[1750751329159,5.60269053,144.88,144.84,18.64964886]
[1750751329966,7.7925,144.94,144.84,18.64964886]
[1750751330146,5.60269053,144.87,144.84,108.04964886]
[1750751330561,5.60269053,144.87,144.85,6.90369347]
[1750751332366,7.8412,144.98,144.88,18.64964886]
[1750751332555,5.60269053,144.94,144.9,18.64964886]
[1750751332756,5.60269053,144.94,144.9,113.65233939]
[1750751332964,5.60269053,144.95,144.9,113.65233939]
[1750751333158,5.60269053,144.97,144.92,24.25233939]
[1750751333359,17.25581828,145.02,144.94,18.64964886]
[1750751333669,5.60269053,144.98,144.94,108.04964886]
[1750751333965,17.25581828,145.02,144.94,115.17733939]
[1750751333966,5.60269053,144.99,144.94,115.17733939]
[1750751334149,5.60269053,144.99,144.96,18.64964886]
[1750751334350,5.60269053,145.0,144.97,6.89797889]
[1750751334561,5.60269053,145.0,144.97,113.54292612]
[1750751335279,5.60269053,145.04,144.97,113.54292612]
[1750751335470,5.60269053,145.0,144.97,113.54292612]
[1750751335860,5.60269053,144.99,144.97,113.54292612]
[1750751336768,5.60269053,145.04,144.97,113.54292612]
[1750751337075,5.60269053,145.0,144.97,113.54292612]
[1750751337772,6.2606,145.06,144.98,24.25233939]
[1750751337974,5.60269053,145.05,145.01,18.64964886]
[1750751338180,5.60269053,145.05,145.01,108.04964886]
[1750751338347,5.60269053,145.04,145.03,18.64964886]
[1750751338776,5.60269053,145.04,145.02,6.8956006]
[1750751338985,5.60269053,145.04,145.01,89.4]
[1750751338986,5.60269053,145.03,145.01,25.54558233]
[1750751339166,5.60269053,145.02,144.94,97.5574]
[1750751339378,5.60269053,144.96,144.95,32.26857952]
[1750751343564,5.60269053,144.96,144.95,6.72]
[1750751343764,5.60269053,144.96,144.94,6.89925422]
[1750751343966,5.60269053,144.95,144.94,6.89925422]
[1750751344177,5.60269053,144.95,144.93,18.64964886]
[1750751344377,5.60269053,144.94,144.92,18.64964886]
[1750751344687,5.60269053,144.93,144.91,6.900835]
[1750751344879,5.60269053,144.92,144.91,25.55048386]
[1750751346269,5.60269053,144.92,144.9,13.62127503]
[1750751346469,5.60269053,144.91,144.9,13.62127503]
[1750751348184,5.60269053,144.91,144.87,18.64964886]
[1750751348368,5.60269053,144.89,144.87,18.64964886]
[1750751348684,13.50289053,144.96,144.87,18.64964886]
[1750751348685,5.60269053,144.88,144.87,18.64964886]
[1750751349959,13.50289053,144.96,144.88,18.64964886]
[1750751350171,5.60269053,144.9,144.88,18.64964886]
[1750751351872,5.60269053,144.9,144.89,25.55143642]
[1750751352665,5.60269053,144.91,144.9,18.64964886]
[1750751353887,5.60269053,144.91,144.9,25.5509601]
[1750751354104,5.60269053,144.91,144.9,6.90131124]
[1750751354413,5.60269053,144.91,144.88,6.90226394]
[1750751354560,13.50289053,144.96,144.89,18.64964886]
[1750751354767,5.60269053,144.9,144.89,108.04964886]
[1750751355495,5.60269053,144.9,144.89,89.4]
[1750751356394,5.60269053,144.9,144.86,108.04964886]
[1750751356594,5.60269053,144.87,144.86,114.95286575]
[1750751357094,13.50289053,144.96,144.86,114.95286575]
[1750751357269,5.60269053,144.88,144.86,114.95286575]
[1750751357673,5.60269053,144.87,144.86,114.95286575]
[1750751359396,5.60269053,144.87,144.82,18.64964886]
[1750751359568,6.0962,144.89,144.82,18.64964886]
[1750751359901,5.60269053,144.83,144.81,6.90560044]
[1750751360073,5.60269053,144.82,144.81,6.90560044]
[1750751360268,5.60269053,144.82,144.81,25.5552493]
[1750751360469,6.0962,144.89,144.82,18.64964886]
[1750751360685,5.60269053,144.83,144.82,18.64964886]
[1750751361498,5.60269053,144.83,144.81,6.90560044]
[1750751361698,5.60269053,144.82,144.81,25.5552493]
[1750751362287,5.60269053,144.83,144.81,25.5552493]
[1750751362710,5.60269053,144.83,144.82,18.64964886]
[1750751364219,5.60269053,144.83,144.82,6.9051236]
[1750751364511,5.60269053,144.87,144.83,18.64964886]
[1750751364699,5.60269053,144.88,144.83,24.25233939]
[1750751364893,5.60269053,144.88,144.83,18.64964886]
[1750751365096,5.60269053,144.88,144.83,24.25233939]
[1750751365283,5.60269053,144.86,144.83,108.04964886]
[1750751365490,13.28920126,144.93,144.83,108.04964886]
[1750751365701,5.60269053,144.85,144.83,108.04964886]
[1750751366184,5.60269053,144.88,144.84,25.55381897]
[1750751366389,5.60269053,144.85,144.84,25.55381897]
[1750751366590,5.60269053,144.85,144.83,6.90449467]
[1750751366790,5.60269053,144.84,144.83,6.90449467]
[1750751367185,5.60269053,144.88,144.83,6.90449467]
[1750751367385,5.60269053,144.84,144.83,6.90449467]
[1750751368395,5.60269053,144.84,144.82,6.9051236]
[1750751368794,5.60269053,144.83,144.82,25.55477246]
[1750751370222,5.60269053,144.88,144.82,25.55477246]
[1750751370400,5.60269053,144.84,144.82,25.55477246]